lending/lending_fUSD_20260222
["ID","MTS","AMOUNT","RATE_DAILY","PERIOD"]
[406354670,1771786250119,-151.0,0.00021446,2]
[406354671,1771786250130,-2000.0,0.00021446,2]
[406354672,1771786250140,-2000.0,0.00021446,2]
[406354673,1771786250150,-2000.0,0.00021446,2]
[406354674,1771786250159,-223.01004224,0.000215,2]
[406354675,1771786250169,-171.0,0.00021545,120]
[406354676,1771786250179,-350.0,0.00021568,2]
[406354677,1771786250188,-232.0,0.00021593,2]
[406354678,1771786250199,-232.0,0.00021598,2]
[406354679,1771786250208,-232.0,0.00021637,2]
[406354680,1771786250218,-232.0,0.00021833,2]
[406354681,1771786250228,-273.95,0.0002186,2]
[406354682,1771786250237,-173.78509278,0.000219,7]
[406354683,1771786250247,-150.0,0.000219,2]
[406354684,1771786250256,-598.84980185,0.000219,2]
[406354685,1771786250266,-7327.93167639,0.000219,2]
[406354686,1771786250276,-2000.0,0.000219,2]
[406354687,1771786250285,-3045.54,0.00021918,2]
[406354688,1771786250295,-5000.0,0.00021918,2]
[406354689,1771786250305,-204.96,0.00021945,2]
[406354690,1771786250315,-1379.37432712,0.00021999,2]
[406354691,1771786250325,-155.74,0.00022,7]
[406354692,1771786250335,-245620.97759253,0.00022,4]
[406354693,1771786250494,-115143.66985247,0.00022,4]
[406354694,1771786250504,-132456.41210482,0.00022,2]
[406354695,1771786250514,-164.92,0.00022,2]
[406354696,1771786250523,-160.0,0.00022,2]
[406354697,1771786250533,-199.86,0.00022,2]
[406354698,1771786250543,-292.0,0.00022015,2]
[406354699,1771786250553,-274.0,0.00022051,2]
[406354700,1771786250563,-496.50578643,0.000221,2]
[406354701,1771786250572,-241.26035627,0.0002211,2]
[406354702,1771786250582,-251.74322487,0.00022117,2]
[406354703,1771786250592,-274.0,0.00022128,2]
[406354704,1771786250602,-292.0,0.00022179,2]
[406354705,1771786250612,-232.0,0.00022252,2]
[406354706,1771786250622,-232.0,0.00022318,2]
[406354707,1771786250633,-173.78509278,0.00022342,30]
[406354708,1771786250643,-160.0,0.000224,30]
[406354709,1771786250653,-232.0,0.0002243,2]
[406354710,1771786250662,-220.49,0.00022437,2]
[406354711,1771786250671,-157.49,0.00022437,2]
[406354712,1771786250682,-232.0,0.00022449,2]
[406354713,1771786250691,-232.0,0.00022496,2]
[406354714,1771786250701,-2945.0,0.000225,2]
[406354715,1771786250711,-161.2,0.00022605,2]
[406354716,1771786250723,-171.0,0.00022622,120]
[406354717,1771786250735,-232.0,0.00022628,2]
[406354718,1771786250745,-1000.0,0.00022709,2]
[406354719,1771786250755,-525.45261076,0.0002271,2]
[406354720,1771786250765,-200.38575183,0.0002275,2]
[406354721,1771786250775,-232.0,0.00022752,2]
[406354722,1771786250785,-274.0,0.000228,2]
[406354723,1771786250795,-392.65378736,0.000228,2]
[406354724,1771786250804,-500.0,0.00022815,2]
[406354725,1771786250814,-350.0,0.0002282,2]
[406354726,1771786250824,-175.96,0.00022845,2]
[406354727,1771786250833,-164.4,0.000229,14]
[406354728,1771786250843,-200.0,0.000229,8]
[406354729,1771786250854,-160.9,0.00022916,2]
[406354730,1771786250863,-350.0,0.00022942,2]
[406354731,1771786250873,-151.41,0.00022985,30]
[406354732,1771786250884,-151.0,0.00022997,7]
[406354733,1771786250895,-304941.08931983,0.00023,2]
[406354734,1771786250904,-160.0,0.00023,2]
[406354735,1771786250914,-1600.0,0.00023142,2]
[406354736,1771786250925,-678.55897621,0.000232,2]
[406354737,1771786250935,-2000.0,0.000233,2]
[406354738,1771786250945,-11609.487106,0.00023364,30]
[406354739,1771786250955,-185.745034,0.00023364,30]
[406354740,1771786250968,-350.0,0.00023379,2]
[406354741,1771786250978,-30415.0831609,0.00023482,2]
[406354742,1771786250987,-110454.13274145,0.00023482,2]
[406354743,1771786251000,-461.614895,0.00023482,2]
[406354744,1771786251012,-446.821,0.00023482,2]
[406354745,1771786251024,-595.56076077,0.00023482,2]
[406354746,1771786251035,-418.680849,0.00023482,2]
[406354747,1771786251046,-922.57665898,0.00023482,2]
[406354755,1771786487495,500.0,0.00015,2]
[406354758,1771786514592,500.0,0.00015,2]
[406354760,1771786522629,500.0,0.00015,2]
[406354761,1771786528803,500.0,0.00015,2]
[406354770,1771786550555,778.0,0.00015,2]
[406354802,1771787431320,-395.00479507,0.00016295,2]
[406354803,1771787431332,-604.99520493,0.00016295,2]
[406354804,1771787431341,-380.90479507,0.00017049,2]
[406354805,1771787431374,-119.09520493,0.00017049,2]
[406354806,1771787431385,-500.0,0.00017049,2]
[406354807,1771787431395,-182.0,0.00017763,2]
[406354808,1771787431407,-300.0,0.00017764,2]
[406354809,1771787431418,-300.0,0.00017764,2]
[406354810,1771787431431,-1200.0,0.00017764,2]
[406354811,1771787431441,-500.0,0.00017765,2]
[406354812,1771787431452,-500.0,0.00017765,2]
[406354813,1771787431461,-221.79491378,0.00017765,2]
[406354814,1771787431501,-278.20508622,0.00017765,2]
[406354815,1771787431511,-500.0,0.00017765,2]
[406354816,1771787431522,-500.0,0.00017765,2]
[406354817,1771787431532,-586.94,0.00017765,2]
[406354819,1771787431542,-500.0,0.00017765,2]
[406354821,1771787431552,-500.0,0.00017765,2]
[406354822,1771787431562,-500.0,0.00017765,2]
[406354823,1771787431571,-500.0,0.00017765,2]
[406354824,1771787431581,-500.0,0.00017765,2]
[406354826,1771787431591,-500.0,0.00017765,2]
[406354828,1771787431600,-500.0,0.00017765,2]
[406354830,1771787431609,-500.0,0.00017765,2]
[406354833,1771787431621,-500.0,0.00017765,2]
[406354836,1771787431631,-500.0,0.00017765,2]
[406354839,1771787431641,-500.0,0.00017765,2]
[406354842,1771787431650,-112.79634428,0.00017765,2]
[406354844,1771787431662,-387.20365572,0.00017765,2]
[406354846,1771787431673,-500.0,0.00017765,2]
[406354848,1771787431682,-500.0,0.00017765,2]
[406354850,1771787431691,-100.75170428,0.00017776,2]
[406354853,1771787431703,-65.90829572,0.00017776,2]
[406354855,1771787431712,-250.0,0.00017925,2]
[406354857,1771787431722,-250.0,0.00017925,2]
[406354858,1771787431732,-250.0,0.00017925,2]
[406354860,1771787431742,-500.0,0.00018001,2]
[406354862,1771787431751,-500.0,0.00018001,2]
[406354864,1771787431762,-500.0,0.00018001,2]
[406354865,1771787431772,-500.0,0.00018001,2]
[406354866,1771787431782,-509.72616168,0.00018001,2]
[406354867,1771787431792,-500.0,0.00018001,2]
[406354868,1771787431802,-500.0,0.00018001,2]
[406354869,1771787431812,-500.0,0.00018001,2]
[406354870,1771787431823,-500.0,0.00018001,2]
[406354871,1771787431832,-500.0,0.00018001,2]
[406354872,1771787431842,-53.7574126,0.00018001,2]
[406354873,1771787431855,-446.2425874,0.00018001,2]
[406354874,1771787431865,-63.7574126,0.00018001,2]
[406354875,1771787431876,-436.2425874,0.00018001,2]
[406354876,1771787431886,-400.0,0.00018001,2]
[406354877,1771787431896,-486.30947207,0.00018001,2]
[406354878,1771787431906,-187.98,0.00018101,2]
[406354879,1771787431916,-139.46794053,0.00018151,2]
[406354880,1771787431928,-27.19205947,0.00018151,2]
[406354881,1771787431938,-500.0,0.00018265,2]
[406354882,1771787431948,-150.0,0.00018265,2]
[406354883,1771787431958,-8.80251457,0.00018265,2]
[406354884,1771787431970,-491.19748543,0.00018265,2]
[406354885,1771787431979,-150.0,0.00018265,2]
[406354886,1771787431989,-150.0,0.00018265,2]
[406354887,1771787431999,-150.0,0.00018265,2]
[406354888,1771787432020,-500.0,0.0001832,2]
[406354889,1771787432032,-150.0,0.0001832,2]
[406354890,1771787432042,-500.0,0.0001832,2]
[406354891,1771787432055,-279.92496284,0.0001832,2]
[406354892,1771787432066,-150.0,0.00018375,2]
[406354893,1771787432077,-500.0,0.00018375,2]
[406354894,1771787432092,-500.0,0.00018375,2]
[406354895,1771787432103,-150.0,0.00018429,2]
[406354896,1771787432113,-500.0,0.00018429,2]
[406354897,1771787432123,-500.0,0.00018429,2]
[406354898,1771787432133,-150.0,0.00018484,2]
[406354899,1771787432143,-500.0,0.00018484,2]
[406354900,1771787432154,-500.0,0.00018484,2]
[406354901,1771787432164,-166.66,0.00018525,2]
[406354902,1771787432174,-999.99,0.00018539,2]
[406354903,1771787432183,-150.99,0.00018539,2]
[406354904,1771787432194,-535.09,0.00018539,2]
[406354905,1771787432205,-9999.99,0.00018539,2]
[406354906,1771787432216,-160.0,0.00018539,2]
[406354907,1771787432225,-173.78509278,0.00018539,2]
[406354908,1771787432235,-250.0,0.00018539,2]
[406354909,1771787432245,-597.64402894,0.00018539,2]
[406354910,1771787432255,-150.0,0.00018539,2]
[406354911,1771787432265,-10059.61,0.00018739,2]
[406354912,1771787432275,-278.617552,0.00018888,7]
[406354913,1771787432284,-166.66,0.00018899,2]
[406354914,1771787432294,-200.0,0.00019082,2]
[406354915,1771787432303,-166.66,0.00019273,2]
[406354916,1771787432319,-166.66,0.00019648,2]
[406354917,1771787432329,-2500.0,0.00019785,2]
[406354918,1771787432339,-193.48263084,0.00019847,3]
[406354919,1771787432349,-216.67646568,0.00019847,2]
[406354920,1771787432359,-274.89779413,0.00019847,2]
[406354921,1771787432369,-233.4107704,0.00019847,2]
[406354922,1771787432381,-200.03451288,0.00019875,2]
[406354923,1771787432392,-19487.31,0.00019875,2]
[406354924,1771787432402,-4730.18906217,0.00019875,2]
[406354925,1771787432417,-1027.11678612,0.00019875,2]
[406354926,1771787432429,-719.62920142,0.00019875,2]
[406354927,1771787432441,-7167.07226802,0.00019875,2]
[406354928,1771787432458,-738.41,0.00019875,2]
[406354929,1771787432472,-263.41,0.00019875,2]
[406354930,1771787432483,-529.74179822,0.00019875,2]
[406354931,1771787432495,-595.51496788,0.00019875,2]
[406354932,1771787432510,-441.46468563,0.00019875,2]
[406354933,1771787432521,-720.22605909,0.00019875,2]
[406354934,1771787432532,-390.419,0.00019875,2]
[406354948,1771787437628,-2164.11617145,0.00019875,2]
[406354949,1771787437638,-151.0,0.00019882,2]
[406354950,1771787437648,-151.0,0.00019882,2]
[406354951,1771787437658,-742.41830425,0.00019882,2]
[406354952,1771787437668,-742.41830425,0.00019882,2]
[406354953,1771787437680,-742.41830425,0.00019882,2]
[406354954,1771787437690,-742.41830425,0.00019882,2]
[406354955,1771787437700,-742.41830425,0.00019882,2]
[406354956,1771787437709,-742.41830425,0.00019882,2]
[406354957,1771787437719,-742.41830425,0.00019882,2]
[406354958,1771787437728,-742.41830425,0.00019882,2]
[406354959,1771787437739,-742.41830425,0.00019882,2]
[406354960,1771787437748,-742.41830425,0.00019882,2]
[406354961,1771787437758,-742.41830425,0.00019882,2]
[406354962,1771787437769,-742.41830425,0.00019882,2]
[406354963,1771787437778,-742.41830425,0.00019882,2]
[406354964,1771787437788,-742.41830425,0.00019882,2]
[406354965,1771787437798,-742.41830425,0.00019882,2]
[406354966,1771787437810,-742.41830425,0.00019882,2]
[406354967,1771787437819,-742.41830425,0.00019882,2]
[406354968,1771787437830,-742.41830425,0.00019882,2]
[406354969,1771787437839,-742.41830425,0.00019882,2]
[406354970,1771787437850,-742.41830425,0.00019882,2]
[406354971,1771787437860,-742.41830425,0.00019882,2]
[406354972,1771787437870,-218.23732117,0.00019882,2]
[406354992,1771787439733,-524.18098308,0.00019882,2]
[406354993,1771787439744,-742.41830425,0.00019882,2]
[406354994,1771787439929,-742.41830425,0.00019882,2]
[406354995,1771787439939,-742.41830425,0.00019882,2]
[406354996,1771787439948,-742.41830425,0.00019882,2]
[406354997,1771787439957,-742.41830425,0.00019882,2]
[406354998,1771787439967,-149.75349939,0.00019882,2]
[406354999,1771787439978,-337.72899728,0.00019882,2]
[406355000,1771787439993,-254.93580758,0.00019882,2]
[406355001,1771787440002,-742.41830425,0.00019882,2]
[406355002,1771787440011,-742.41830425,0.00019882,2]
[406355003,1771787440020,-742.41830425,0.00019882,2]
[406355004,1771787440029,-742.41830425,0.00019882,2]
[406355005,1771787440038,-742.41830425,0.00019882,2]
[406355006,1771787440047,-742.41830425,0.00019882,2]
[406355007,1771787440057,-742.41830425,0.00019882,2]
[406355008,1771787440066,-742.41830425,0.00019882,2]
[406355009,1771787440075,-742.41830425,0.00019882,2]
[406355010,1771787440087,-742.41830425,0.00019882,2]
[406355011,1771787440097,-742.41830425,0.00019882,2]
[406355012,1771787440106,-742.41830425,0.00019882,2]
[406355013,1771787440115,-742.41830425,0.00019882,2]
[406355015,1771787440127,-742.41830425,0.00019882,2]
[406355017,1771787440136,-742.41830425,0.00019882,2]
[406355018,1771787440148,-742.41830425,0.00019882,2]
[406355019,1771787440160,-742.41830425,0.00019882,2]
[406355020,1771787440170,-742.41830425,0.00019882,2]
[406355021,1771787440183,-742.41830425,0.00019882,2]
[406355023,1771787440193,-742.41830425,0.00019882,2]
[406355025,1771787440203,-742.41830425,0.00019882,2]
[406355027,1771787440213,-742.41830425,0.00019882,2]
[406355029,1771787440222,-742.41830425,0.00019882,2]
[406355031,1771787440232,-742.41830425,0.00019882,2]
[406355033,1771787440242,-742.41830425,0.00019882,2]
[406355035,1771787440252,-742.41830425,0.00019882,2]
[406355037,1771787440261,-742.41830425,0.00019882,2]
[406355039,1771787440271,-742.41830425,0.00019882,2]
[406355041,1771787440282,-742.41830425,0.00019882,2]
[406355042,1771787440292,-858.47365515,0.00019884,2]
[406355043,1771787440302,-150.17425141,0.00019884,2]
[406355044,1771787440311,-500.0,0.00019884,2]
[406355045,1771787440321,-858.47365515,0.00019884,2]
[406355046,1771787440331,-858.47365515,0.00019884,2]
[406355047,1771787440340,-500.0,0.00019884,2]
[406355048,1771787440350,-858.47365515,0.00019884,2]
[406355049,1771787440357,-858.47365515,0.00019884,2]
[406355050,1771787440365,-858.47365515,0.00019884,2]
[406355051,1771787440374,-858.47365515,0.00019884,2]
[406355052,1771787440385,-858.47365515,0.00019884,2]
[406355053,1771787440395,-190.50405002,0.00019884,2]
[406355054,1771787440405,-858.47365515,0.00019884,2]
[406355055,1771787440415,-858.47365515,0.00019884,2]
[406355056,1771787440428,-858.47365515,0.00019884,2]
[406355057,1771787440439,-858.47365515,0.00019884,2]
[406355058,1771787440449,-858.47365515,0.00019884,2]
[406355059,1771787440458,-858.47365515,0.00019884,2]
[406355060,1771787440471,-858.47365515,0.00019884,2]
[406355061,1771787440482,-858.47365515,0.00019884,2]
[406355062,1771787440491,-858.47365515,0.00019884,2]
[406355063,1771787440502,-858.47365515,0.00019884,2]
[406355064,1771787440512,-858.47365515,0.00019884,2]
[406355065,1771787440522,-858.47365515,0.00019884,2]
[406355066,1771787440533,-858.47365515,0.00019884,2]
[406355067,1771787440543,-1062.56933191,0.00019884,2]
[406355068,1771787440553,-1062.56933191,0.00019884,2]
[406355069,1771787440562,-1062.56933191,0.00019884,2]
[406355070,1771787440572,-1062.56933191,0.00019884,2]
[406355071,1771787440582,-1062.56933191,0.00019884,2]
[406355072,1771787440592,-1062.56933191,0.00019884,2]
[406355073,1771787440601,-505.61035179,0.00019884,2]
[406355074,1771787440611,-120207.24023077,0.00019885,2]
[406355081,1771787442564,-178.00123142,0.00019847,2]
[406355082,1771787442575,-243.06557152,0.00019885,2]
[406355083,1771787442587,-736.00102635,0.00019885,2]
[406355084,1771787442617,-801.0,0.00019885,2]
[406355085,1771787442671,-1134.47,0.00019885,2]
[406355086,1771787442682,-69775.836,0.00019885,2]
[406355087,1771787442882,-2793.99946114,0.00019885,2]
[406355132,1771787445351,-358.00690215,0.00019885,2]
[406355133,1771787445616,-253.27990139,0.00019847,2]
[406355134,1771787445625,-6495.72009869,0.00019885,2]
[406355135,1771787445639,-9912.021315,0.00019885,2]
[406355435,1771788637620,-200.0,0.00017587,2]
[406355436,1771788637631,-300.0,0.00017611,2]
[406355437,1771788637647,-565.37,0.00017611,2]
[406355438,1771788637658,-2364.943,0.00017874,2]
[406355439,1771788637669,-164.138,0.00017874,2]
[406355440,1771788637680,-156.17597743,0.000179,2]
[406355441,1771788637690,-1039.77225151,0.00017939,2]
[406355442,1771788637700,-187.63559982,0.00017946,3]
[406355519,1771788938935,-161.98428225,0.00015035,2]
[406355520,1771788939028,-722.8955016,0.00015035,2]
[406355521,1771789153096,5531.0,0.00015,5]
[406355597,1771789831667,-9.81021615,0.00015035,2]
[406355598,1771789831677,-166.66,0.00015557,2]
[406355599,1771789831686,-166.66,0.00015885,2]
[406355600,1771789831695,-340.26052465,0.00016037,7]
[406355601,1771789831706,-8.57832135,0.00016037,7]
[406355602,1771789831716,-166.66,0.00016212,2]
[406355603,1771789831725,-151.35,0.0001645,30]
[406355604,1771789831734,-403.46167865,0.0001653,2]
[406355605,1771789831864,-458.44747329,0.0001653,2]
[406355606,1771789831876,-638.09084806,0.0001653,2]
[406355607,1771789831886,-358.325,0.00016538,2]
[406355608,1771789831896,-166.66,0.0001654,2]
[406355609,1771789831906,-1462.38,0.00016591,2]
[406355610,1771789831916,-481.342459,0.00016694,7]
[406355612,1771789831926,-1200.0,0.000167,2]
[406355614,1771789831935,-300.0,0.000167,2]
[406355615,1771789831945,-1994.97167632,0.00016701,2]
[406355616,1771789831956,-565.87098227,0.00016701,2]
[406355617,1771789832073,-574.6,0.00016701,2]
[406355618,1771789832085,-2024.23734141,0.00016701,2]
[406355619,1771789832095,-300.0,0.00016727,2]
[406355620,1771789832105,-2051.61862319,0.0001673,2]
[406355621,1771789832214,-1188.38137681,0.0001673,2]
[406355622,1771789832224,-2.25169064,0.00016796,2]
[406355623,1771789832240,-711.15830936,0.00016796,2]
[406355624,1771789832250,-166.66,0.00016867,2]
[406355625,1771789832260,-362.38,0.00016869,2]
[406355626,1771789832270,-328.25,0.00016881,2]
[406355627,1771789832279,-1920.36,0.00016922,2]
[406355628,1771789832289,-369.06,0.00016922,2]
[406355629,1771789832299,-1204.72,0.00016922,2]
[406355630,1771789832309,-150.0,0.00017049,2]
[406355631,1771789832319,-166.66,0.00017195,2]
[406355632,1771789832329,-200.0,0.000174,6]
[406355633,1771789832339,-1462.38,0.00017421,2]
[406355634,1771789832349,-819.18709683,0.000175,2]
[406355635,1771789832359,-209.79049163,0.000175,2]
[406355636,1771789832369,-155.60718028,0.000175,2]
[406355637,1771789832380,-449.28609275,0.000175,2]
[406355638,1771789832390,-199.32966182,0.000175,3]
[406355639,1771789832581,-500.0,0.000175,6]
[406355640,1771789832593,-819.18709677,0.00017533,2]
[406355641,1771789832604,-819.18709677,0.00017567,2]
[406355642,1771789832615,-636.48823945,0.00017573,2]
[406355643,1771789832624,-501.62516482,0.00017573,2]
[406355644,1771789832634,-206.48976748,0.00017573,2]
[406355645,1771789832643,-500.0,0.00017573,2]
[406355646,1771789832653,-175.15043052,0.00017573,2]
[406355647,1771789832663,-500.0,0.00017573,2]
[406355648,1771789832673,-500.0,0.00017573,2]
[406355649,1771789832684,-449.28609275,0.0001758,2]
[406355650,1771789832695,-300.0,0.00017597,2]
[406355651,1771789832705,-151.0,0.00017597,2]
[406355652,1771789832716,-935.79502635,0.00017598,2]
[406355653,1771789832728,-168.8532676,0.00017598,2]
[406355654,1771789832740,-122522.35385552,0.000176,2]
[406355655,1771789832754,-8231.17153552,0.000176,2]
[406355656,1771789832784,-18292.11207238,0.000176,2]
[406355657,1771789832796,-689.16136204,0.000176,2]
[406355658,1771789832809,-1625.0,0.000176,2]
[406355659,1771789832821,-4734.15578863,0.000176,2]
[406355660,1771789832832,-513.639,0.000176,2]
[406355663,1771789838104,-258.7999999,0.00017599,2]
[406355664,1771789838118,-241.2000001,0.00017599,2]
[406355665,1771789838129,-116.5999999,0.00017599,2]
[406355666,1771789838144,-458.96346208,0.00017599,2]
[406355667,1771789838154,-409.68617564,0.00017599,2]
[406355668,1771789838164,-500.0,0.00017599,2]
[406355669,1771789838175,-500.0,0.00017599,2]
[406355670,1771789838186,-500.0,0.00017599,2]
[406355671,1771789838196,-500.0,0.00017599,2]
[406355672,1771789838207,-563.14702534,0.00017599,2]
[406355673,1771789838217,-500.0,0.00017599,2]
[406355674,1771789838227,-263.7555946,0.00017599,2]
[406355675,1771789838239,-500.0,0.00017599,2]
[406355676,1771789838250,-404.38214481,0.00017599,2]
[406355677,1771789838261,-583.5013263,0.00017599,2]
[406355678,1771789838272,-500.0,0.00017599,2]
[406355679,1771789838283,-500.0,0.00017599,2]
[406355680,1771789838294,-500.0,0.00017599,2]
[406355681,1771789838304,-199.08785671,0.00017599,2]
[406355682,1771789838317,-500.0,0.00017599,2]
[406355683,1771789838327,-500.0,0.00017599,2]
[406355684,1771789838340,-500.0,0.00017599,2]
[406355685,1771789838351,-500.0,0.00017599,2]
[406355686,1771789838362,-500.0,0.00017599,2]
[406355687,1771789838373,-234.15847868,0.00017599,2]
[406355688,1771789838386,-500.0,0.00017599,2]
[406355689,1771789838397,-500.0,0.00017599,2]
[406355690,1771789838408,-500.0,0.00017599,2]
[406355691,1771789838420,-500.0,0.00017599,2]
[406355692,1771789838431,-500.0,0.00017599,2]
[406355693,1771789838442,-500.0,0.00017599,2]
[406355694,1771789838452,-500.0,0.00017599,2]
[406355695,1771789838464,-500.0,0.00017599,2]
[406355696,1771789838475,-500.0,0.00017599,2]
[406355697,1771789838486,-500.0,0.00017599,2]
[406355698,1771789838497,-500.0,0.00017599,2]
[406355699,1771789838508,-500.0,0.00017599,2]
[406355700,1771789838520,-500.0,0.00017599,2]
[406355701,1771789838530,-500.0,0.00017599,2]
[406355702,1771789838540,-500.0,0.00017599,2]
[406355703,1771789838551,-500.0,0.00017599,2]
[406355704,1771789838562,-500.0,0.00017599,2]
[406355705,1771789838572,-500.0,0.00017599,2]
[406355706,1771789838583,-500.0,0.00017599,2]
[406355707,1771789838595,-500.0,0.00017599,2]
[406355708,1771789838605,-500.0,0.00017599,2]
[406355709,1771789838616,-500.0,0.00017599,2]
[406355710,1771789838628,-500.0,0.00017599,2]
[406355711,1771789838639,-500.0,0.00017599,2]
[406355712,1771789838650,-500.0,0.00017599,2]
[406355713,1771789838661,-500.0,0.00017599,2]
[406355714,1771789838672,-500.0,0.00017599,2]
[406355715,1771789838682,-500.0,0.00017599,2]
[406355716,1771789838693,-500.0,0.00017599,2]
[406355717,1771789838705,-500.0,0.00017599,2]
[406355718,1771789838715,-500.0,0.00017599,2]
[406355719,1771789838726,-500.0,0.00017599,2]
[406355720,1771789838738,-500.0,0.00017599,2]
[406355721,1771789838749,-500.0,0.00017599,2]
[406355722,1771789838760,-500.0,0.00017599,2]
[406355723,1771789838770,-500.0,0.00017599,2]
[406355724,1771789838781,-500.0,0.00017599,2]
[406355725,1771789838793,-500.0,0.00017599,2]
[406355726,1771789838804,-465.43754784,0.00017599,2]
[406355727,1771789838814,-500.0,0.00017599,2]
[406355728,1771789838827,-500.0,0.00017599,2]
[406355729,1771789838838,-500.0,0.00017599,2]
[406355730,1771789838848,-500.0,0.00017599,2]
[406355731,1771789838859,-500.0,0.00017599,2]
[406355732,1771789838869,-500.0,0.00017599,2]
[406355733,1771789838880,-3343392.40638591,0.000176,2]
[406355734,1771789838891,-819.18709677,0.000176,2]
[406355735,1771789838901,-500.0,0.000176,2]
[406355736,1771789838912,-800.0,0.000176,6]
[406355737,1771789838923,-935.79502634,0.0001762,2]
[406355738,1771789838933,-819.18709677,0.00017633,2]
[406355739,1771789838943,-935.79502634,0.00017643,2]
[406355740,1771789838955,-449.28609275,0.0001766,2]
[406355741,1771789838965,-935.79502634,0.00017665,2]
[406355742,1771789838974,-819.18709677,0.00017667,2]
[406355743,1771789838984,-935.79502634,0.00017688,2]
[406355744,1771789838994,-250.0,0.00017696,2]
[406355745,1771789839004,-2500.0,0.00017698,2]
[406355746,1771789839015,-606.94280946,0.00017698,2]
[406355747,1771789839026,-22916.44340705,0.000177,3]
[406355748,1771789839036,-1100.0,0.000177,6]
[406355749,1771789839047,-819.18709677,0.000177,2]
[406355750,1771789839056,-935.79502634,0.0001771,2]
[406355751,1771789839067,-935.79502634,0.00017733,2]
[406355752,1771789839076,-819.18709677,0.00017733,2]
[406355753,1771789839087,-449.28609275,0.0001774,2]
[406355754,1771789839097,-935.79502634,0.00017755,2]
[406355755,1771789839108,-819.18709677,0.00017767,2]
[406355756,1771789839119,-935.79502634,0.00017778,2]
[406355757,1771789839129,-500.0,0.00017797,2]
[406355758,1771789839139,-500.0,0.00017797,2]
[406355759,1771789839149,-225.18,0.00017797,2]
[406355760,1771789839158,-487.0,0.00017798,2]
[406355761,1771789839168,-487.0,0.00017798,2]
[406355762,1771789839178,-487.0,0.00017798,2]
[406355763,1771789839188,-487.0,0.00017798,2]
[406355764,1771789839198,-487.0,0.00017798,2]
[406355765,1771789839208,-487.0,0.00017798,2]
[406355766,1771789839217,-589.34,0.00017798,2]
[406355767,1771789839227,-935.79502634,0.000178,2]
[406355768,1771789839237,-819.18709677,0.000178,2]
[406355769,1771789839247,-1400.0,0.000178,6]
[406355770,1771789839257,-151.0,0.00017805,2]
[406355771,1771789839267,-500.0,0.00017808,2]
[406355772,1771789839276,-500.0,0.00017808,2]
[406355773,1771789839286,-500.0,0.00017808,2]
[406355774,1771789839295,-500.0,0.00017808,2]
[406355775,1771789839305,-500.0,0.00017808,2]
[406355776,1771789839315,-500.0,0.00017808,2]
[406355777,1771789839325,-500.0,0.00017808,2]
[406355778,1771789839335,-500.0,0.00017808,2]
[406355779,1771789839344,-500.0,0.00017808,2]
[406355780,1771789839354,-500.0,0.00017808,2]
[406355781,1771789839363,-500.0,0.00017808,2]
[406355782,1771789839373,-500.0,0.00017808,2]
[406355783,1771789839387,-500.0,0.00017808,2]
[406355784,1771789839398,-354.54948717,0.00017808,2]
[406355785,1771789839407,-500.0,0.00017808,2]
[406355786,1771789839418,-500.0,0.00017808,2]
[406355787,1771789839428,-500.0,0.00017808,2]
[406355788,1771789839438,-500.0,0.00017808,2]
[406355789,1771789839448,-449.28609275,0.0001782,2]
[406355790,1771789839458,-151.0,0.00017896,2]